[Event "Late-Titled-Tuesday-Blitz-January-16-2024"]
[Site "Chess.com"]
[Date "2024.01.16"]
[Round "6"]
[White "RobertoJBM"]
[Black "AldokhinIvan"]
[Result "1-0"]
[WhiteElo "2797"]
[BlackElo "2585"]
[TimeControl "180+1"]
[EndTime "15:05:10 PST"]
[Termination "RobertoJBM won by resignation"]

1. d4 {[%clk 0:03:00.9]} 1... Nf6 {[%clk 0:02:58.4]} 2. c4 {[%clk 0:03:00.5]}
2... g6 {[%clk 0:02:58.5]} 3. Nc3 {[%clk 0:03:00.1]} 3... Bg7 {[%clk 0:02:59.1]}
4. e4 {[%clk 0:03:00.1]} 4... d6 {[%clk 0:02:59.8]} 5. f3 {[%clk 0:02:59.5]}
5... O-O {[%clk 0:02:58]} 6. Be3 {[%clk 0:02:59.8]} 6... c6 {[%clk 0:02:58.7]}
7. Qd2 {[%clk 0:02:59.6]} 7... d5 {[%clk 0:02:59]} 8. e5 {[%clk 0:02:57.9]} 8...
Nfd7 {[%clk 0:02:59.3]} 9. cxd5 {[%clk 0:02:57]} 9... cxd5 {[%clk 0:02:59.6]}
10. Nxd5 {[%clk 0:02:54.6]} 10... Nc6 {[%clk 0:03:00.2]} 11. f4 {[%clk
0:02:48.6]} 11... f6 {[%clk 0:02:41.1]} 12. Nf3 {[%clk 0:02:42.4]} 12... fxe5
{[%clk 0:02:40.5]} 13. dxe5 {[%clk 0:02:41]} 13... e6 {[%clk 0:01:51.7]} 14. Nc3
{[%clk 0:02:39.3]} 14... Qe7 {[%clk 0:01:51.9]} 15. O-O-O {[%clk 0:02:35.8]}
15... Nb6 {[%clk 0:01:43.2]} 16. Ne4 {[%clk 0:02:25]} 16... Rd8 {[%clk
0:01:28.8]} 17. Nd6 {[%clk 0:02:24.6]} 17... Nd5 {[%clk 0:01:22.1]} 18. Bc4
{[%clk 0:02:21.3]} 18... Rxd6 {[%clk 0:01:08.3]} 19. exd6 {[%clk 0:02:19.2]}
19... Qxd6 {[%clk 0:01:08.3]} 20. Bxd5 {[%clk 0:02:04.3]} 20... exd5 {[%clk
0:01:07]} 21. Qxd5+ {[%clk 0:02:05.2]} 21... Qxd5 {[%clk 0:01:07.5]} 22. Rxd5
{[%clk 0:02:05.9]} 22... Be6 {[%clk 0:01:08.3]} 23. Rd6 {[%clk 0:02:06]} 23...
Bxa2 {[%clk 0:01:06.8]} 24. Nd4 {[%clk 0:01:50.2]} 24... Nb4 {[%clk 0:00:31.1]}
25. Kd2 {[%clk 0:01:42]} 25... Re8 {[%clk 0:00:23.1]} 26. g3 {[%clk 0:01:08.6]}
26... Bd5 {[%clk 0:00:22.7]} 27. Rc1 {[%clk 0:01:04.9]} 27... Be4 {[%clk
0:00:21]} 28. Rd7 {[%clk 0:00:45.6]} 28... Nd5 {[%clk 0:00:17]} 29. Bg1 {[%clk
0:00:40.2]} 29... Bf8 {[%clk 0:00:17.2]} 30. Nc2 {[%clk 0:00:25.6]} 30... Nf6
{[%clk 0:00:13.5]} 31. Rd4 {[%clk 0:00:22.5]} 31... Bc6 {[%clk 0:00:12.3]} 32.
Re1 {[%clk 0:00:21.3]} 32... Ne4+ {[%clk 0:00:10]} 33. Kc1 {[%clk 0:00:21.6]}
33... Bg7 {[%clk 0:00:10.3]} 34. Rd3 {[%clk 0:00:20.7]} 34... Kf7 {[%clk
0:00:07.2]} 35. Bd4 {[%clk 0:00:20.2]} 35... Bf8 {[%clk 0:00:05.4]} 36. Rde3
{[%clk 0:00:19.4]} 36... a5 {[%clk 0:00:04.8]} 37. Kb1 {[%clk 0:00:19.4]} 37...
Nd6 {[%clk 0:00:05]} 38. Rxe8 {[%clk 0:00:19]} 38... Nxe8 {[%clk 0:00:05.9]} 39.
Be5 {[%clk 0:00:18.8]} 39... a4 {[%clk 0:00:05.5]} 40. Nd4 {[%clk 0:00:19.1]}
40... Bd5 {[%clk 0:00:05.9]} 41. Kc2 {[%clk 0:00:19.2]} 41... Nd6 {[%clk
0:00:06.1]} 42. Bxd6 {[%clk 0:00:17]} 42... Bxd6 {[%clk 0:00:07]} 43. Kd3 {[%clk
0:00:17.4]} 43... Bc7 {[%clk 0:00:06.1]} 44. Rc1 {[%clk 0:00:16.5]} 44... Bb6
{[%clk 0:00:06.3]} 45. Rc8 {[%clk 0:00:16.9]} 45... Kf6 {[%clk 0:00:03.4]} 46.
Ra8 {[%clk 0:00:14.1]} 46... Bxd4 {[%clk 0:00:02.7]} 47. Kxd4 {[%clk 0:00:13.9]}
47... Bc6 {[%clk 0:00:03.6]} 48. Ra5 {[%clk 0:00:12.6]} 48... h5 {[%clk
0:00:03.7]} 49. Re5 {[%clk 0:00:12.4]} 49... Kf7 {[%clk 0:00:03.9]} 50. Kc5
{[%clk 0:00:12.7]} 50... Kf6 {[%clk 0:00:04.2]} 51. Kd6 {[%clk 0:00:12.2]} 51...
Kf7 {[%clk 0:00:04.4]} 52. Re6 {[%clk 0:00:11.4]} 52... Kg7 {[%clk 0:00:04.3]}
53. Ke5 {[%clk 0:00:11]} 53... Kf7 {[%clk 0:00:03.9]} 54. Rd6 {[%clk 0:00:10.7]}
54... Kg7 {[%clk 0:00:03.7]} 55. f5 {[%clk 0:00:08.3]} 55... gxf5 {[%clk
0:00:03.4]} 56. Kxf5 {[%clk 0:00:09.2]} 56... Kf7 {[%clk 0:00:03.9]} 57. Rh6
{[%clk 0:00:08.6]} 57... Bf3 {[%clk 0:00:03.8]} 58. Kf4 {[%clk 0:00:08.9]} 58...
Bd1 {[%clk 0:00:03.3]} 59. Rh7+ {[%clk 0:00:08.3]} 59... Ke6 {[%clk 0:00:03.8]}
60. Rxb7 {[%clk 0:00:09.2]} 60... Kd5 {[%clk 0:00:03.9]} 61. Rd7+ {[%clk
0:00:09.4]} 61... Kc4 {[%clk 0:00:03.9]} 62. Rxd1 {[%clk 0:00:10.3]} 62... Kb3
{[%clk 0:00:04.5]} 63. Rd2 {[%clk 0:00:10.7]} 1-0

[Event "Late-Titled-Tuesday-Blitz-January-16-2024"]
[Site "Chess.com"]
[Date "2024.01.16"]
[Round "6"]
[White "Brahianzevich"]
[Black "Felix-Rose"]
[Result "1-0"]
[WhiteElo "2431"]
[BlackElo "2233"]
[TimeControl "180+1"]
[EndTime "15:05:11 PST"]
[Termination "Brahianzevich won on time"]

1. e4 {[%clk 0:02:56.6]} 1... e5 {[%clk 0:02:59.1]} 2. Nf3 {[%clk 0:02:56.4]}
2... Nc6 {[%clk 0:02:59.4]} 3. Bb5 {[%clk 0:02:57]} 3... a6 {[%clk 0:02:59.5]}
4. Ba4 {[%clk 0:02:57.2]} 4... Nf6 {[%clk 0:02:59.8]} 5. O-O {[%clk 0:02:56.8]}
5... b5 {[%clk 0:03:00.3]} 6. Bb3 {[%clk 0:02:56]} 6... Bc5 {[%clk 0:03:00.9]}
7. c3 {[%clk 0:02:54.6]} 7... d6 {[%clk 0:03:01.5]} 8. d4 {[%clk 0:02:52.6]}
8... Bb6 {[%clk 0:03:01.9]} 9. Be3 {[%clk 0:02:52.4]} 9... O-O {[%clk
0:02:53.4]} 10. Nbd2 {[%clk 0:02:43.7]} 10... Bb7 {[%clk 0:02:44.8]} 11. dxe5
{[%clk 0:02:29.2]} 11... Bxe3 {[%clk 0:02:42.7]} 12. exf6 {[%clk 0:02:29.1]}
12... Bb6 {[%clk 0:01:30.2]} 13. fxg7 {[%clk 0:02:23]} 13... Re8 {[%clk
0:01:29.8]} 14. a4 {[%clk 0:02:16.6]} 14... Ne5 {[%clk 0:01:23.7]} 15. Qe2
{[%clk 0:02:05.5]} 15... Qf6 {[%clk 0:01:06.1]} 16. axb5 {[%clk 0:01:49.7]}
16... Nxf3+ {[%clk 0:01:02.2]} 17. Qxf3 {[%clk 0:01:49.7]} 17... Qxf3 {[%clk
0:00:57.7]} 18. Nxf3 {[%clk 0:01:43.1]} 18... Kxg7 {[%clk 0:00:35.5]} 19. bxa6
{[%clk 0:01:42.3]} 19... Bxa6 {[%clk 0:00:34.5]} 20. Rfe1 {[%clk 0:01:39.4]}
20... Bd3 {[%clk 0:00:27.5]} 21. Rxa8 {[%clk 0:01:35.3]} 21... Rxa8 {[%clk
0:00:27.3]} 22. Bd5 {[%clk 0:01:35.8]} 22... Rb8 {[%clk 0:00:25.2]} 23. Ng5
{[%clk 0:01:32]} 23... f6 {[%clk 0:00:06.9]} 24. Ne6+ {[%clk 0:01:31.8]} 24...
Kh8 {[%clk 0:00:05.9]} 25. Nf4 {[%clk 0:01:30.7]} 25... Bb5 {[%clk 0:00:05.7]}
26. g3 {[%clk 0:01:25.4]} 26... c6 {[%clk 0:00:06.1]} 27. Be6 {[%clk 0:01:23.3]}
27... Bc5 {[%clk 0:00:06.2]} 28. b4 {[%clk 0:01:20.7]} 28... Ba7 {[%clk
0:00:06.2]} 29. Rd1 {[%clk 0:01:20.9]} 29... Rd8 {[%clk 0:00:05.5]} 30. Kg2
{[%clk 0:01:18.3]} 30... c5 {[%clk 0:00:06]} 31. bxc5 {[%clk 0:01:15.9]} 31...
Bxc5 {[%clk 0:00:06.9]} 32. Nd5 {[%clk 0:01:16.8]} 32... Kg7 {[%clk 0:00:06.6]}
33. Ra1 {[%clk 0:01:15.7]} 33... Bc4 {[%clk 0:00:04.5]} 34. Ra4 {[%clk
0:01:12.6]} 34... Bxd5 {[%clk 0:00:04.9]} 35. Bxd5 {[%clk 0:01:12.2]} 35... Rc8
{[%clk 0:00:04.4]} 36. h4 {[%clk 0:01:09.9]} 36... Rb8 {[%clk 0:00:04.6]} 37.
Ra2 {[%clk 0:01:09.5]} 37... Rc8 {[%clk 0:00:04.2]} 38. Rb2 {[%clk 0:01:09.2]}
38... Rc7 {[%clk 0:00:04.3]} 39. Kf3 {[%clk 0:01:07.9]} 39... Ba3 {[%clk
0:00:04.9]} 40. Rb3 {[%clk 0:01:07.3]} 40... Bc5 {[%clk 0:00:05.4]} 41. c4
{[%clk 0:01:06.3]} 41... Re7 {[%clk 0:00:05.3]} 42. Rb8 {[%clk 0:01:05.4]} 42...
h6 {[%clk 0:00:04.3]} 43. h5 {[%clk 0:01:02.8]} 43... Bd4 {[%clk 0:00:04.2]} 44.
Rg8+ {[%clk 0:01:01.9]} 44... Kh7 {[%clk 0:00:04.6]} 45. Rg6 {[%clk 0:01:01.8]}
45... Rg7 {[%clk 0:00:04.2]} 46. Rxg7+ {[%clk 0:00:49.5]} 46... Kxg7 {[%clk
0:00:05.1]} 47. Ke2 {[%clk 0:00:49.4]} 47... f5 {[%clk 0:00:04]} 48. exf5 {[%clk
0:00:46.2]} 48... Kf6 {[%clk 0:00:04.6]} 49. Be6 {[%clk 0:00:37.4]} 49... Bc3
{[%clk 0:00:02.9]} 50. f4 {[%clk 0:00:35.7]} 50... Bb4 {[%clk 0:00:02.8]} 51.
Kf3 {[%clk 0:00:36]} 51... Be1 {[%clk 0:00:02.9]} 52. g4 {[%clk 0:00:32.9]}
52... Bd2 {[%clk 0:00:02.9]} 53. Ke4 {[%clk 0:00:33.5]} 53... Bc1 {[%clk
0:00:02.8]} 54. Bd5 {[%clk 0:00:32.9]} 54... Bd2 {[%clk 0:00:03.1]} 55. Be6
{[%clk 0:00:29.3]} 55... Bc1 {[%clk 0:00:03.4]} 56. Kf3 {[%clk 0:00:29.9]} 56...
Bd2 {[%clk 0:00:03.6]} 57. g5+ {[%clk 0:00:21.8]} 57... hxg5 {[%clk 0:00:04]}
58. h6 {[%clk 0:00:22.3]} 58... gxf4 {[%clk 0:00:03.4]} 59. h7 {[%clk
0:00:21.3]} 59... Kg7 {[%clk 0:00:03.8]} 60. Bg8 {[%clk 0:00:20.9]} 60... Bc3
{[%clk 0:00:03.7]} 61. Kxf4 {[%clk 0:00:21]} 61... Be5+ {[%clk 0:00:04.1]} 62.
Ke4 {[%clk 0:00:20.5]} 62... Kf8 {[%clk 0:00:02]} 63. Kd5 {[%clk 0:00:20.5]}
63... Ke7 {[%clk 0:00:02.5]} 64. c5 {[%clk 0:00:20.1]} 1-0

[Event "Late-Titled-Tuesday-Blitz-January-16-2024"]
[Site "Chess.com"]
[Date "2024.01.16"]
[Round "6"]
[White "alexrustemov"]
[Black "BogdanDeac"]
[Result "0-1"]
[WhiteElo "2849"]
[BlackElo "3033"]
[TimeControl "180+1"]
[EndTime "15:05:13 PST"]
[Termination "BogdanDeac won on time"]

1. d4 {[%clk 0:03:00.9]} 1... d5 {[%clk 0:03:00.3]} 2. c4 {[%clk 0:03:01.2]}
2... e6 {[%clk 0:03:01]} 3. Nf3 {[%clk 0:03:01.2]} 3... Nf6 {[%clk 0:03:00.7]}
4. cxd5 {[%clk 0:03:01.5]} 4... exd5 {[%clk 0:03:01]} 5. Nc3 {[%clk 0:03:02.4]}
5... c5 {[%clk 0:02:59.9]} 6. g3 {[%clk 0:02:59.4]} 6... Nc6 {[%clk 0:02:59.4]}
7. Bg2 {[%clk 0:02:59.5]} 7... h6 {[%clk 0:03:00.1]} 8. O-O {[%clk 0:02:56.2]}
8... Be6 {[%clk 0:03:00.7]} 9. Be3 {[%clk 0:02:42.7]} 9... c4 {[%clk 0:02:59.2]}
10. Ne5 {[%clk 0:02:42.7]} 10... Rc8 {[%clk 0:02:54.1]} 11. Bf4 {[%clk
0:02:30.5]} 11... Bb4 {[%clk 0:02:39]} 12. a3 {[%clk 0:02:25.5]} 12... Bxc3
{[%clk 0:02:33.2]} 13. bxc3 {[%clk 0:02:25.5]} 13... O-O {[%clk 0:02:33.7]} 14.
Nxc6 {[%clk 0:02:12.8]} 14... Rxc6 {[%clk 0:02:27.1]} 15. a4 {[%clk 0:02:09.4]}
15... Qa5 {[%clk 0:02:14.6]} 16. Qc2 {[%clk 0:02:07.2]} 16... Rfc8 {[%clk
0:01:54.7]} 17. Rfb1 {[%clk 0:02:06.9]} 17... Rb6 {[%clk 0:01:54]} 18. h3 {[%clk
0:02:00.4]} 18... Ne4 {[%clk 0:01:17.5]} 19. Rxb6 {[%clk 0:01:49.3]} 19... axb6
{[%clk 0:01:15.2]} 20. Bxe4 {[%clk 0:01:38.8]} 20... dxe4 {[%clk 0:01:14.2]} 21.
Kg2 {[%clk 0:01:37.5]} 21... Bd5 {[%clk 0:00:57.7]} 22. Kh2 {[%clk 0:01:33.5]}
22... b5 {[%clk 0:00:56.2]} 23. Bd6 {[%clk 0:01:30.6]} 23... Ra8 {[%clk
0:00:30.5]} 24. Bb4 {[%clk 0:01:29.6]} 24... Qa6 {[%clk 0:00:31]} 25. a5 {[%clk
0:01:29.4]} 25... Qf6 {[%clk 0:00:31.5]} 26. Kg1 {[%clk 0:01:24]} 26... Qf5
{[%clk 0:00:26.9]} 27. g4 {[%clk 0:01:20.3]} 27... Qg5 {[%clk 0:00:21.3]} 28.
Qc1 {[%clk 0:01:20.6]} 28... Qh4 {[%clk 0:00:21.4]} 29. Kg2 {[%clk 0:01:16.8]}
29... Qf6 {[%clk 0:00:16.9]} 30. Qe3 {[%clk 0:01:15.6]} 30... Re8 {[%clk
0:00:12.3]} 31. Kh2 {[%clk 0:01:07]} 31... Re6 {[%clk 0:00:09.5]} 32. Rg1 {[%clk
0:01:06.6]} 32... g5 {[%clk 0:00:08.8]} 33. Qg3 {[%clk 0:01:02]} 33... Qd8
{[%clk 0:00:08.4]} 34. Ra1 {[%clk 0:00:46.8]} 34... Kh7 {[%clk 0:00:08.4]} 35.
Bc5 {[%clk 0:00:44.5]} 35... Kg6 {[%clk 0:00:04.8]} 36. Bb4 {[%clk 0:00:36.5]}
36... Kh7 {[%clk 0:00:04.5]} 37. Bc5 {[%clk 0:00:36.8]} 37... Qf6 {[%clk
0:00:05]} 38. Bb4 {[%clk 0:00:33.6]} 38... Qf4 {[%clk 0:00:03.9]} 39. Qxf4
{[%clk 0:00:24.1]} 39... gxf4 {[%clk 0:00:04.8]} 40. Bc5 {[%clk 0:00:18.7]}
40... Kg6 {[%clk 0:00:04.5]} 41. Ba7 {[%clk 0:00:18.7]} 41... f3 {[%clk
0:00:04.5]} 42. e3 {[%clk 0:00:18.3]} 42... h5 {[%clk 0:00:04.8]} 43. Kg3 {[%clk
0:00:18.5]} 43... f6 {[%clk 0:00:05.1]} 44. gxh5+ {[%clk 0:00:15]} 44... Kxh5
{[%clk 0:00:05.2]} 45. Kf4 {[%clk 0:00:15.7]} 45... Kg6 {[%clk 0:00:05.8]} 46.
Rg1+ {[%clk 0:00:15.6]} 46... Kf7 {[%clk 0:00:06]} 47. h4 {[%clk 0:00:16.1]}
47... Re8 {[%clk 0:00:06.1]} 48. h5 {[%clk 0:00:16.1]} 48... Rh8 {[%clk
0:00:06.2]} 49. Rh1 {[%clk 0:00:16.6]} 49... Rh6 {[%clk 0:00:06.4]} 50. Bb8
{[%clk 0:00:15]} 50... Ke6 {[%clk 0:00:06.2]} 51. Kg3 {[%clk 0:00:15.3]} 51...
Kf5 {[%clk 0:00:05.9]} 52. Bf4 {[%clk 0:00:15.8]} 52... Rh7 {[%clk 0:00:05.6]}
53. h6 {[%clk 0:00:16.4]} 53... Kg6 {[%clk 0:00:06.1]} 54. Kh4 {[%clk
0:00:15.8]} 54... Rf7 {[%clk 0:00:05.6]} 55. Rg1+ {[%clk 0:00:16.2]} 55... Kh7
{[%clk 0:00:06.3]} 56. Kh5 {[%clk 0:00:16.7]} 56... Bc6 {[%clk 0:00:05.9]} 57.
Rg3 {[%clk 0:00:15]} 57... Be8 {[%clk 0:00:05.7]} 58. Kh4 {[%clk 0:00:15.4]}
58... Bd7 {[%clk 0:00:05.9]} 59. Rg1 {[%clk 0:00:15.4]} 59... Bf5 {[%clk
0:00:04.9]} 60. Ra1 {[%clk 0:00:15.3]} 60... Bc8 {[%clk 0:00:04.8]} 61. Rb1
{[%clk 0:00:14.4]} 61... Bd7 {[%clk 0:00:04.9]} 62. Rb2 {[%clk 0:00:14.2]} 62...
Rf8 {[%clk 0:00:04.6]} 63. Bg3 {[%clk 0:00:07.1]} 63... Rg8 {[%clk 0:00:04.4]}
64. Kh5 {[%clk 0:00:07.6]} 64... Rg5+ {[%clk 0:00:04.2]} 65. Kh4 {[%clk
0:00:08.1]} 65... Rg4+ {[%clk 0:00:04.7]} 66. Kh5 {[%clk 0:00:08.3]} 66... f5
{[%clk 0:00:04.5]} 0-1

[Event "Late-Titled-Tuesday-Blitz-January-16-2024"]
[Site "Chess.com"]
[Date "2024.01.16"]
[Round "6"]
[White "IPAchess"]
[Black "yaguigor"]
[Result "0-1"]
[WhiteElo "2391"]
[BlackElo "2633"]
[TimeControl "180+1"]
[EndTime "15:05:13 PST"]
[Termination "yaguigor won on time"]

1. d4 {[%clk 0:03:00.9]} 1... d5 {[%clk 0:02:59.2]} 2. c4 {[%clk 0:03:01.4]}
2... c6 {[%clk 0:02:59]} 3. Nf3 {[%clk 0:03:01.8]} 3... Nf6 {[%clk 0:02:58.4]}
4. Nc3 {[%clk 0:03:02.1]} 4... e6 {[%clk 0:02:58.3]} 5. Bg5 {[%clk 0:03:02.3]}
5... h6 {[%clk 0:02:56.2]} 6. Bxf6 {[%clk 0:02:57.7]} 6... Qxf6 {[%clk
0:02:57.1]} 7. e3 {[%clk 0:02:58.1]} 7... Nd7 {[%clk 0:02:54.6]} 8. Be2 {[%clk
0:02:49.1]} 8... g6 {[%clk 0:02:53.6]} 9. O-O {[%clk 0:02:42.8]} 9... Bg7 {[%clk
0:02:52.7]} 10. e4 {[%clk 0:02:43.2]} 10... dxc4 {[%clk 0:02:51.9]} 11. e5
{[%clk 0:02:30.5]} 11... Qe7 {[%clk 0:02:50.9]} 12. Nd2 {[%clk 0:02:31.3]} 12...
O-O {[%clk 0:02:40.4]} 13. Nxc4 {[%clk 0:02:26.1]} 13... c5 {[%clk 0:02:37.2]}
14. f4 {[%clk 0:02:24.9]} 14... cxd4 {[%clk 0:02:33.5]} 15. Qxd4 {[%clk
0:02:25.6]} 15... Qc5 {[%clk 0:02:02.3]} 16. Qxc5 {[%clk 0:02:25.5]} 16... Nxc5
{[%clk 0:02:02.9]} 17. b4 {[%clk 0:02:26.2]} 17... Na6 {[%clk 0:02:00.2]} 18. a3
{[%clk 0:02:26.6]} 18... Bd7 {[%clk 0:01:59.4]} 19. Rfd1 {[%clk 0:02:25.4]}
19... Rad8 {[%clk 0:01:56.2]} 20. Na5 {[%clk 0:02:18.8]} 20... Bc8 {[%clk
0:01:54]} 21. Bxa6 {[%clk 0:02:16.4]} 21... bxa6 {[%clk 0:01:51.9]} 22. Nc6
{[%clk 0:02:14.9]} 22... Rd7 {[%clk 0:01:47.5]} 23. Ne4 {[%clk 0:01:56]} 23...
Rxd1+ {[%clk 0:01:40.6]} 24. Rxd1 {[%clk 0:01:55]} 24... Bb7 {[%clk 0:01:41.4]}
25. Rd6 {[%clk 0:01:43.1]} 25... g5 {[%clk 0:01:33.6]} 26. g3 {[%clk 0:01:38.8]}
26... gxf4 {[%clk 0:01:33.2]} 27. gxf4 {[%clk 0:01:39.3]} 27... Kh7 {[%clk
0:01:32.5]} 28. Nc5 {[%clk 0:01:30.9]} 28... Bxc6 {[%clk 0:01:27.9]} 29. Rxc6
{[%clk 0:01:31.8]} 29... Kg6 {[%clk 0:01:20.1]} 30. Kf2 {[%clk 0:01:27.5]} 30...
a5 {[%clk 0:01:05.6]} 31. bxa5 {[%clk 0:01:21.8]} 31... Rb8 {[%clk 0:01:04.2]}
32. Rc7 {[%clk 0:01:09]} 32... Bf8 {[%clk 0:01:01.8]} 33. Nd7 {[%clk 0:01:03.4]}
33... Rb2+ {[%clk 0:01:00.4]} 34. Kg3 {[%clk 0:01:03.6]} 34... Rb3+ {[%clk
0:00:57.3]} 35. Kg2 {[%clk 0:01:02.1]} 35... Rb2+ {[%clk 0:00:54.6]} 36. Kf3
{[%clk 0:01:02.6]} 36... Rb3+ {[%clk 0:00:53.2]} 37. Ke4 {[%clk 0:01:01.3]}
37... Bxa3 {[%clk 0:00:52.9]} 38. Rxa7 {[%clk 0:00:58.2]} 38... Bc1 {[%clk
0:00:50.4]} 39. Nf8+ {[%clk 0:00:53.1]} 39... Kg7 {[%clk 0:00:19]} 40. Nxe6+
{[%clk 0:00:52.9]} 40... Kg8 {[%clk 0:00:18.7]} 41. Nd4 {[%clk 0:00:44.2]} 41...
Rb4 {[%clk 0:00:18]} 42. Rd7 {[%clk 0:00:44.8]} 42... Ra4 {[%clk 0:00:16.3]} 43.
Rd5 {[%clk 0:00:38.8]} 43... Bb2 {[%clk 0:00:15.7]} 44. f5 {[%clk 0:00:27.1]}
44... Kg7 {[%clk 0:00:13.4]} 45. f6+ {[%clk 0:00:25.7]} 45... Kg6 {[%clk
0:00:13.2]} 46. Rd8 {[%clk 0:00:24.3]} 46... Bxd4 {[%clk 0:00:12]} 47. Rxd4
{[%clk 0:00:23.5]} 47... Rxa5 {[%clk 0:00:12.4]} 48. Rb4 {[%clk 0:00:16.7]}
48... Ra2 {[%clk 0:00:12.2]} 49. h4 {[%clk 0:00:16.4]} 49... Re2+ {[%clk
0:00:10.6]} 50. Kf4 {[%clk 0:00:15.5]} 50... Rf2+ {[%clk 0:00:10.6]} 51. Kg4
{[%clk 0:00:14]} 51... h5+ {[%clk 0:00:10.4]} 52. Kg3 {[%clk 0:00:14]} 52... Re2
{[%clk 0:00:10.7]} 53. Kf4 {[%clk 0:00:11.1]} 53... Rg2 {[%clk 0:00:09.1]} 54.
Rb8 {[%clk 0:00:09.2]} 54... Rg4+ {[%clk 0:00:09.1]} 55. Kf3 {[%clk 0:00:09.7]}
55... Rxh4 {[%clk 0:00:07.7]} 56. Rg8+ {[%clk 0:00:03.4]} 56... Kf5 {[%clk
0:00:07.8]} 57. Rg7 {[%clk 0:00:04.1]} 57... Ke6 {[%clk 0:00:08]} 58. Rh7 {[%clk
0:00:04.5]} 58... Rh2 {[%clk 0:00:05.4]} 59. Kf4 {[%clk 0:00:05]} 59... Rh4+
{[%clk 0:00:04.9]} 60. Kg5 {[%clk 0:00:05.4]} 60... Re4 {[%clk 0:00:04.3]} 61.
Kxh5 {[%clk 0:00:05.2]} 61... Rxe5+ {[%clk 0:00:04.3]} 62. Kg4 {[%clk
0:00:04.5]} 62... Rf5 {[%clk 0:00:03.8]} 63. Rxf7 {[%clk 0:00:01.9]} 63... Rxf6
{[%clk 0:00:01.6]} 0-1

[Event "Late-Titled-Tuesday-Blitz-January-16-2024"]
[Site "Chess.com"]
[Date "2024.01.16"]
[Round "6"]
[White "Gryffindorac8"]
[Black "nindjaxx8"]
[Result "1-0"]
[WhiteElo "2392"]
[BlackElo "2549"]
[TimeControl "180+1"]
[EndTime "15:05:14 PST"]
[Termination "Gryffindorac8 won on time"]

1. d4 {[%clk 0:03:00.9]} 1... d5 {[%clk 0:02:57]} 2. c4 {[%clk 0:03:00.8]} 2...
e6 {[%clk 0:02:56.4]} 3. Nf3 {[%clk 0:03:00.5]} 3... Nf6 {[%clk 0:02:55.7]} 4.
g3 {[%clk 0:03:00.3]} 4... Be7 {[%clk 0:02:54.7]} 5. Bg2 {[%clk 0:03:00.3]} 5...
O-O {[%clk 0:02:54]} 6. O-O {[%clk 0:03:00.4]} 6... b6 {[%clk 0:02:48.3]} 7.
cxd5 {[%clk 0:03:00]} 7... exd5 {[%clk 0:02:47]} 8. Nc3 {[%clk 0:03:00]} 8...
Bb7 {[%clk 0:02:39.9]} 9. Bf4 {[%clk 0:02:59.2]} 9... c6 {[%clk 0:02:40.1]} 10.
Ne5 {[%clk 0:02:35.1]} 10... Nbd7 {[%clk 0:02:31.3]} 11. Qc2 {[%clk 0:02:31.6]}
11... Nxe5 {[%clk 0:02:28]} 12. dxe5 {[%clk 0:02:32.5]} 12... Nd7 {[%clk
0:02:28.5]} 13. Rad1 {[%clk 0:02:27]} 13... Qe8 {[%clk 0:02:18.5]} 14. e4 {[%clk
0:02:20.4]} 14... dxe4 {[%clk 0:02:15.7]} 15. Nxe4 {[%clk 0:02:17.7]} 15... Nc5
{[%clk 0:02:05.8]} 16. Nd6 {[%clk 0:02:12.3]} 16... Bxd6 {[%clk 0:02:00.9]} 17.
exd6 {[%clk 0:02:13.2]} 17... Rd8 {[%clk 0:01:55.9]} 18. Rfe1 {[%clk 0:02:00.2]}
18... Ne6 {[%clk 0:01:55.5]} 19. d7 {[%clk 0:01:46.5]} 19... Rxd7 {[%clk
0:01:18.8]} 20. Bd6 {[%clk 0:01:44.8]} 20... c5 {[%clk 0:00:56.6]} 21. Bxf8
{[%clk 0:01:40.8]} 21... Rxd1 {[%clk 0:00:56.5]} 22. Qxd1 {[%clk 0:01:33]} 22...
Bxg2 {[%clk 0:00:55.5]} 23. Kxg2 {[%clk 0:01:30.4]} 23... Qxf8 {[%clk
0:00:54.1]} 24. Qd7 {[%clk 0:01:28.3]} 24... Qa8+ {[%clk 0:00:52.6]} 25. Kg1
{[%clk 0:01:14.8]} 25... h6 {[%clk 0:00:44.7]} 26. h4 {[%clk 0:01:12.8]} 26...
Qf3 {[%clk 0:00:31.7]} 27. Qxa7 {[%clk 0:00:52.9]} 27... b5 {[%clk 0:00:16.6]}
28. Qb8+ {[%clk 0:00:44.9]} 28... Kh7 {[%clk 0:00:16]} 29. Qxb5 {[%clk
0:00:43.5]} 29... Qd5 {[%clk 0:00:14.3]} 30. Qb3 {[%clk 0:00:33.4]} 30... Qc6
{[%clk 0:00:04.2]} 31. Qc2+ {[%clk 0:00:25.5]} 31... g6 {[%clk 0:00:02.6]} 32.
Qe4 {[%clk 0:00:24.5]} 32... Qb6 {[%clk 0:00:01.9]} 33. b3 {[%clk 0:00:18.9]}
33... Qa5 {[%clk 0:00:02.2]} 34. Rd1 {[%clk 0:00:13.1]} 34... Qxa2 {[%clk
0:00:02.1]} 35. Rd7 {[%clk 0:00:11.9]} 35... Kg8 {[%clk 0:00:01.9]} 36. Qf3
{[%clk 0:00:08.3]} 36... f5 {[%clk 0:00:01]} 37. Qd5 {[%clk 0:00:06.2]} 37...
Qa1+ {[%clk 0:00:01.4]} 38. Kg2 {[%clk 0:00:04.3]} 38... Qf6 {[%clk 0:00:02.3]}
39. Rd6 {[%clk 0:00:04]} 39... Kf7 {[%clk 0:00:02.7]} 40. Rd7+ {[%clk
0:00:04.1]} 40... Kg8 {[%clk 0:00:02.7]} 41. Qa8+ {[%clk 0:00:02.6]} 41... Nf8
{[%clk 0:00:02.4]} 42. Rd8 {[%clk 0:00:02.6]} 42... f4 {[%clk 0:00:02.8]} 43.
Qd5+ {[%clk 0:00:02.7]} 43... Kh8 {[%clk 0:00:02.7]} 44. Qf3 {[%clk 0:00:03.6]}
44... g5 {[%clk 0:00:02.4]} 45. hxg5 {[%clk 0:00:04.3]} 45... hxg5 {[%clk
0:00:03.3]} 46. Qh5+ {[%clk 0:00:04.9]} 46... Kg8 {[%clk 0:00:04.1]} 47. gxf4
{[%clk 0:00:04.5]} 47... gxf4 {[%clk 0:00:05]} 48. Qg4+ {[%clk 0:00:04.4]} 48...
Kf7 {[%clk 0:00:05.6]} 49. Rb8 {[%clk 0:00:04]} 49... Ne6 {[%clk 0:00:03.9]} 50.
Rb7+ {[%clk 0:00:04.4]} 50... Kf8 {[%clk 0:00:04.5]} 51. Qf3 {[%clk 0:00:03.8]}
51... Nd4 {[%clk 0:00:03.9]} 52. Qd5 {[%clk 0:00:03.5]} 52... f3+ {[%clk
0:00:03.9]} 53. Kf1 {[%clk 0:00:03.7]} 53... Ne6 {[%clk 0:00:01.9]} 54. Rb8+
{[%clk 0:00:03.8]} 54... Kg7 {[%clk 0:00:02.2]} 55. Rb7+ {[%clk 0:00:03.9]}
55... Kg6 {[%clk 0:00:02.4]} 56. Qd3+ {[%clk 0:00:03.9]} 56... Kh6 {[%clk
0:00:02.9]} 57. Qh7+ {[%clk 0:00:03.3]} 57... Kg5 {[%clk 0:00:03.1]} 58. Qg8+
{[%clk 0:00:02.1]} 58... Kf4 {[%clk 0:00:03.1]} 59. Rf7 {[%clk 0:00:01.1]} 59...
Qxf7 {[%clk 0:00:01.9]} 60. Qxf7+ {[%clk 0:00:02]} 60... Ke5 {[%clk 0:00:02]}
61. Qb7 {[%clk 0:00:02.9]} 61... Nd4 {[%clk 0:00:02.7]} 62. Qa8 {[%clk
0:00:02.5]} 62... Kf4 {[%clk 0:00:02.7]} 63. Qa5 {[%clk 0:00:03.2]} 63... Ke5
{[%clk 0:00:03.6]} 64. Qxc5+ {[%clk 0:00:03.4]} 64... Ke4 {[%clk 0:00:04.5]} 65.
Qc4 {[%clk 0:00:04.1]} 65... Ke5 {[%clk 0:00:04.8]} 66. b4 {[%clk 0:00:04.8]}
66... Ke4 {[%clk 0:00:05.7]} 67. b5 {[%clk 0:00:05.4]} 67... Ke5 {[%clk
0:00:06.6]} 68. b6 {[%clk 0:00:06.2]} 68... Ke4 {[%clk 0:00:07.5]} 69. b7 {[%clk
0:00:06.8]} 69... Ke5 {[%clk 0:00:08.4]} 70. b8=Q+ {[%clk 0:00:07.6]} 70... Ke4
{[%clk 0:00:09.3]} 71. Qg3 {[%clk 0:00:07.6]} 1-0